{"text_format":"1","workbook":"xlsx","n_sheets":1,"sheets":["Weekly Class Attendance"],"not_rendered":{"charts":0,"images":2,"macros":0,"external_links":0,"defined_names":1,"comments":0,"pivot_tables":0},"unopened":[],"bounds":{"document_bytes":16777216,"sheet_cells":100000,"rows_first":2000,"rows_last":500,"rows_between":2000,"halvings":0,"cell_chars":16384,"cell_head_chars":4096},"cells_cut":0,"cells_raw":0,"read":"whole","date_system":"1900"}

{"sheet":"Weekly Class Attendance","index":0,"n_rows":52,"n_cols":36,"rows_kept":52,"cut":false,"hidden":false,"merged":[[51,1,51,37],[2,4,2,13],[3,4,3,13],[5,4,5,13],[6,4,6,13],[8,10,8,13],[3,15,3,26],[5,15,5,18],[6,15,6,18],[5,24,5,26],[6,24,6,26],[5,19,5,23],[6,19,6,23],[8,2,9,2],[2,28,2,35],[3,28,3,34],[4,28,4,34],[5,28,5,34],[6,28,6,34],[2,1,2,2],[3,1,3,2],[5,1,5,2],[6,1,6,2],[8,1,9,1],[8,3,8,9],[8,15,8,18],[9,15,9,18],[2,15,2,26]]}
[null,"WEEKLY CLASS ATTENDANCE SHEET"]
[]
[null,"SCHOOL NAME",null,null,"COURSE TITLE",null,null,null,null,null,null,null,null,null,null,"TIME / CLASS PERIOD",null,null,null,null,null,null,null,null,null,null,null,null,"KEY"]
[null,null,null,null,null,null,null,null,null,null,null,null,null,null,null,null,null,null,null,null,null,null,null,null,null,null,null,null,"PRESENT",null,null,null,null,null,null,"P"]
[null,null,null,null,null,null,null,null,null,null,null,null,null,null,null,null,null,null,null,null,null,null,null,null,null,null,null,null,"UNEXCUSED ABSENCE",null,null,null,null,null,null,"U"]
[null,"PROFESSOR NAME",null,null,"LOCATION",null,null,null,null,null,null,null,null,null,null,"SEMESTER",null,null,null,"MONTH",null,null,null,null,"YEAR",null,null,null,"EXCUSED ABSENCE",null,null,null,null,null,null,"E"]
[null,null,null,null,null,null,null,null,null,null,null,null,null,null,null,null,null,null,null,null,null,null,null,null,null,null,null,null,"TARDY",null,null,null,null,null,null,"T"]
[]
[null,"STUDENT NAME","STUDENT ID","DAY OF WEEK",null,null,null,null,null,null,"TOTAL",null,null,null,null,"WEEK NUMBER"]
[null,null,null,"M","T","W","R","F","Sa","Su","P","U","E","T"]
[null,null,null,null,null,null,null,null,null,null,{"$f":"COUNTIF(D11:J11,\"*\"&K$10&\"*\")","v":0},{"$f":"COUNTIF(D11:K11,\"*\"&L$10&\"*\")","v":0},{"$f":"COUNTIF(D11:L11,\"*\"&M$10&\"*\")","v":0},{"$f":"COUNTIF(D11:M11,\"*\"&N$10&\"*\")","v":0}]
[null,null,null,null,null,null,null,null,null,null,0,0,0,0]
[null,null,null,null,null,null,null,null,null,null,0,0,0,0]
[null,null,null,null,null,null,null,null,null,null,0,0,0,0]
[null,null,null,null,null,null,null,null,null,null,0,0,0,0]
[null,null,null,null,null,null,null,null,null,null,0,0,0,0]
[null,null,null,null,null,null,null,null,null,null,0,0,0,0]
[null,null,null,null,null,null,null,null,null,null,0,0,0,0]
[null,null,null,null,null,null,null,null,null,null,0,0,0,0]
[null,null,null,null,null,null,null,null,null,null,0,0,0,0]
[null,null,null,null,null,null,null,null,null,null,0,0,0,0]
[null,null,null,null,null,null,null,null,null,null,0,0,0,0]
[null,null,null,null,null,null,null,null,null,null,0,0,0,0]
[null,null,null,null,null,null,null,null,null,null,0,0,0,0]
[null,null,null,null,null,null,null,null,null,null,0,0,0,0]
[null,null,null,null,null,null,null,null,null,null,0,0,0,0]
[null,null,null,null,null,null,null,null,null,null,0,0,0,0]
[null,null,null,null,null,null,null,null,null,null,0,0,0,0]
[null,null,null,null,null,null,null,null,null,null,0,0,0,0]
[null,null,null,null,null,null,null,null,null,null,0,0,0,0]
[null,null,null,null,null,null,null,null,null,null,0,0,0,0]
[null,null,null,null,null,null,null,null,null,null,0,0,0,0]
[null,null,null,null,null,null,null,null,null,null,0,0,0,0]
[null,null,null,null,null,null,null,null,null,null,0,0,0,0]
[null,null,null,null,null,null,null,null,null,null,0,0,0,0]
[null,null,null,null,null,null,null,null,null,null,0,0,0,0]
[null,null,null,null,null,null,null,null,null,null,0,0,0,0]
[null,null,null,null,null,null,null,null,null,null,0,0,0,0]
[null,null,null,null,null,null,null,null,null,null,0,0,0,0]
[null,null,null,null,null,null,null,null,null,null,0,0,0,0]
[null,null,null,null,null,null,null,null,null,null,0,0,0,0]
[null,null,null,null,null,null,null,null,null,null,0,0,0,0]
[null,null,null,null,null,null,null,null,null,null,0,0,0,0]
[null,null,null,null,null,null,null,null,null,null,0,0,0,0]
[null,null,null,null,null,null,null,null,null,null,0,0,0,0]
[null,null,null,null,null,null,null,null,null,null,0,0,0,0]
[null,null,null,null,null,null,null,null,null,null,0,0,0,0]
[null,null,null,null,null,null,null,null,null,null,0,0,0,0]
[null,null,null,null,null,null,null,null,null,null,0,0,0,0]
[null,null,null,null,null,null,null,null,null,null,0,0,0,0]
[]
[null,"CLICK HERE TO CREATE WEEKLY CLASS ATTENDANCE SHEET TEMPLATES IN SMARTSHEET"]